fUST/lending_fUST_20240227
["ID","MTS","AMOUNT","RATE_DAILY","PERIOD"]
[315252827,1708967441765,-500.0,0.00020821,2]
[315252829,1708967441774,-500.0,0.00020821,2]
[315252831,1708967441783,-827.66,0.00020821,2]
[315252833,1708967441792,-1694.78,0.00020821,2]
[315252835,1708967441803,-643.41,0.00020821,2]
[315252837,1708967441812,-1295.79,0.00020821,2]
[315252839,1708967441821,-712.12,0.00020821,2]
[315252841,1708967441829,-1044.17,0.00020821,2]
[315252843,1708967441838,-1025.43,0.00020821,2]
[315252845,1708967441847,-10001.0,0.00020821,2]
[315252847,1708967441857,-500.0,0.00020821,2]
[315252849,1708967441866,-1076.02,0.00020821,2]
[315252850,1708967441875,-500.0,0.00020821,2]
[315252852,1708967441885,-500.0,0.00020821,2]
[315252854,1708967441894,-1087.87,0.00020821,2]
[315252856,1708967441903,-787.16,0.00020821,2]
[315252858,1708967441912,-4193.46,0.00020821,2]
[315252861,1708967441921,-514.9,0.00020821,2]
[315252863,1708967441931,-2258.61,0.00020821,2]
[315252864,1708967441940,-1552.5,0.00020821,2]
[315252866,1708967441949,-1392.36,0.00020821,2]
[315252868,1708967441959,-9522.21,0.00020821,2]
[315252870,1708967441968,-500.0,0.00020833,2]
[315252872,1708967441977,-243.58118859,0.00020899,2]
[315252874,1708967441986,-500.0,0.00020899,2]
[315252876,1708967441996,-500.0,0.00020899,2]
[315252878,1708967442005,-500.0,0.00020899,2]
[315252881,1708967442015,-500.0,0.00020899,2]
[315252882,1708967442024,-500.0,0.00020899,2]
[315252884,1708967442033,-500.0,0.00020899,2]
[315252886,1708967442043,-500.0,0.00020899,2]
[315252888,1708967442053,-256.44210122,0.00020899,2]
[315252890,1708967442063,-500.0,0.00020899,2]
[315252892,1708967442072,-500.0,0.00020899,2]
[315252894,1708967442081,-500.0,0.00020899,2]
[315252896,1708967442090,-500.0,0.00020899,2]
[315252898,1708967442099,-500.0,0.00020899,2]
[315252900,1708967442108,-500.0,0.00020899,2]
[315252902,1708967442117,-500.0,0.00020899,2]
[315252904,1708967442126,-500.0,0.00020899,2]
[315252906,1708967442135,-500.0,0.00020899,2]
[315252908,1708967442143,-500.0,0.00020899,2]
[315252910,1708967442153,-500.0,0.00020899,2]
[315252912,1708967442162,-500.0,0.00020899,2]
[315252914,1708967442171,-500.0,0.00020899,2]
[315252916,1708967442180,-500.0,0.00020899,2]
[315252918,1708967442190,-504.30152684,0.00020899,2]
[315252920,1708967442198,-500.0,0.00020899,2]
[315252922,1708967442207,-500.0,0.00020899,2]
[315252924,1708967442216,-500.0,0.00020899,2]
[315252926,1708967442225,-500.0,0.00020899,2]
[315252928,1708967442235,-500.0,0.00020899,2]
[315252930,1708967442244,-500.0,0.00020899,2]
[315252933,1708967442254,-500.0,0.00020899,2]
[315252936,1708967442263,-450.0,0.00020899,2]
[315252938,1708967442272,-500.0,0.00020899,2]
[315252941,1708967442281,-500.0,0.00020899,2]
[315252945,1708967442291,-160.0,0.00020899,2]
[315252948,1708967442300,-160.0,0.00020899,2]
[315252951,1708967442310,-160.0,0.00020899,2]
[315252955,1708967442319,-276000.0,0.000209,2]
[315252958,1708967442329,-852.72439853,0.000209,2]
[315252961,1708967442338,-166.666666,0.00020973,2]
[315252963,1708967442348,-500.0,0.00020988,2]
[315252965,1708967442358,-160.0,0.00020999,2]
[315252968,1708967442367,-160.0,0.00020999,2]
[315252971,1708967442377,-160.0,0.00020999,2]
[315252974,1708967442386,-237.99635956,0.00020999,2]
[315252977,1708967442395,-643.59909627,0.00020999,2]
[315252980,1708967442404,-399.333294,0.00020999,2]
[315252984,1708967442413,-500.0,0.00020999,2]
[315252987,1708967442423,-500.0,0.00020999,2]
[315252991,1708967442432,-500.0,0.00020999,2]
[315252994,1708967442441,-319.09963093,0.00020999,2]
[315252996,1708967442451,-500.0,0.00020999,2]
[315252998,1708967442460,-500.0,0.00020999,2]
[315253000,1708967442470,-500.0,0.00020999,2]
[315253002,1708967442479,-500.0,0.00020999,2]
[315253004,1708967442488,-500.0,0.00020999,2]
[315253006,1708967442497,-500.0,0.00020999,2]
[315253008,1708967442506,-500.0,0.00020999,2]
[315253010,1708967442515,-500.0,0.00020999,2]
[315253012,1708967442524,-500.0,0.00020999,2]
[315253014,1708967442534,-500.0,0.00020999,2]
[315253016,1708967442546,-500.0,0.00020999,2]
[315253018,1708967442557,-500.0,0.00020999,2]
[315253020,1708967442566,-500.0,0.00020999,2]
[315253022,1708967442575,-500.0,0.00020999,2]
[315253024,1708967442585,-500.0,0.00020999,2]
[315253026,1708967442594,-262.35647977,0.00020999,2]
[315253028,1708967442603,-500.0,0.00020999,2]
[315253030,1708967442612,-500.0,0.00020999,2]
[315253032,1708967442621,-262.35647977,0.00020999,2]
[315253034,1708967442632,-396445.51924072,0.00021,2]
[315253037,1708967442649,-14811.07558915,0.00021,2]
[315253075,1708967442983,-500.0,0.00019178,2]
[315253078,1708967442994,-63296.41712265,0.00021,2]
[315253088,1708967443084,-6611005.89815921,0.00021,2]
[315253090,1708967443096,-257.59524959,0.00021,2]
[315253103,1708967443205,-398.13992119,0.00021,2]
[315253614,1708967448301,-500.0,0.00019178,2]
[315253616,1708967448312,-500.0,0.00019178,2]
[315253618,1708967448322,-398.99,0.0002089,3]
[315253620,1708967448332,-12197.65,0.0002099,3]
[315253622,1708967448343,-11521.139847,0.00021,2]
[315255757,1708967602426,297.00137,0.00027397,120]
[315255758,1708967713213,174.0,0.00015,10]
[315255759,1708967777753,702.97644221,0.00015,2]
[315255760,1708967797684,702.97644221,0.00015,2]
[315255763,1708967817689,702.97644221,0.00015,2]
[315255764,1708967837704,702.97644221,0.00015,2]
[315255765,1708967855709,702.97644221,0.00015,2]
[315255766,1708967873692,702.97644221,0.00015,2]
[315255767,1708967893738,561.7937527,0.00015,2]
[315255770,1708968083815,222.751027,0.00027397,120]
[315255862,1708968598980,3790.68283111,0.0002013,14]
[315255895,1708968631926,-281.44189552,0.00017072,2]
[315255897,1708968631936,-1878.6643363,0.00017072,2]
[315255899,1708968631946,-261.77212706,0.00017073,2]
[315255901,1708968631959,-295.93063022,0.00017074,2]
[315255965,1708968637928,-155.04651395,0.00017071,2]
[315255966,1708968637938,-408.34229773,0.00017074,2]
[315255968,1708968637948,-160.12079,0.00017078,2]
[315255970,1708968637957,-300.0,0.00017464,2]
[315255971,1708968637967,-19702.67493575,0.00017465,2]
[315255973,1708968637976,-24900.0,0.00017466,2]
[315255975,1708968637985,-393.764923,0.0001778,2]
[315255977,1708968637997,-926.4246673,0.00018899,2]
[315255980,1708968638006,-3324.38408939,0.000189,2]
[315255983,1708968638015,-155.06357607,0.00019167,2]
[315255986,1708968638024,-368.53,0.00019168,3]
[315255989,1708968638033,-184.27,0.00019168,3]
[315255992,1708968638041,-552.82,0.00019168,3]
[315255995,1708968638051,-428.36024684,0.00019176,2]
[315255997,1708968638060,-538.0,0.00019176,2]
[315255999,1708968638069,-295.56467022,0.00019176,2]
[315256001,1708968638078,-1862.07953013,0.00019176,2]
[315256003,1708968638088,-290.05288383,0.00019177,2]
[315256005,1708968638097,-500.0,0.00019178,2]
[315256007,1708968638107,-500.0,0.00019178,2]
[315256009,1708968638117,-588.44,0.00019178,2]
[315256011,1708968638127,-500.0,0.00019178,2]
[315256013,1708968638137,-432.63229669,0.00019178,2]
[315256015,1708968638145,-500.0,0.00019178,2]
[315256017,1708968638154,-543.0771929,0.00019178,2]
[315256019,1708968638163,-500.0,0.00019178,2]
[315256021,1708968638173,-500.0,0.00019178,2]
[315256023,1708968638182,-306.73743767,0.00019178,2]
[315256025,1708968638190,-500.0,0.00019178,2]
[315256027,1708968638199,-500.0,0.00019178,2]
[315256029,1708968638211,-500.0,0.00019178,2]
[315256031,1708968638220,-500.0,0.00019178,2]
[315256033,1708968638230,-500.0,0.00019178,2]
[315256035,1708968638239,-500.0,0.00019178,2]
[315256036,1708968638248,-500.0,0.00019178,2]
[315256038,1708968638257,-501.0655745,0.00019178,2]
[315256040,1708968638266,-500.0,0.00019178,2]
[315256042,1708968638276,-500.0,0.00019178,2]
[315256044,1708968638285,-500.0,0.00019178,2]
[315256046,1708968638294,-500.0,0.00019178,2]
[315256048,1708968638303,-500.0,0.00019178,2]
[315256050,1708968638313,-500.0,0.00019178,2]
[315256052,1708968638322,-500.0,0.00019178,2]
[315256054,1708968638331,-500.0,0.00019178,2]
[315256056,1708968638340,-168.20415055,0.00019178,2]
[315256059,1708968638352,-500.0,0.00019178,2]
[315256061,1708968638363,-407.07496892,0.00019178,2]
[315256062,1708968638372,-500.0,0.00019178,2]
[315256064,1708968638381,-725.94,0.00019178,2]
[315256066,1708968638391,-276.13419307,0.00019178,2]
[315256069,1708968638401,-500.0,0.00019178,2]
[315256071,1708968638410,-500.0,0.00019178,2]
[315256073,1708968638419,-500.0,0.00019178,2]
[315256075,1708968638428,-500.0,0.00019178,2]
[315256076,1708968638438,-500.0,0.00019178,2]
[315256078,1708968638446,-500.0,0.00019178,2]
[315256080,1708968638456,-501.20981282,0.00019178,2]
[315256082,1708968638467,-291.00212191,0.00019178,2]
[315256084,1708968638478,-500.65752268,0.00019178,2]
[315256086,1708968638487,-500.0,0.00019178,2]
[315256088,1708968638496,-623.1,0.00019178,2]
[315256090,1708968638505,-500.0,0.00019178,2]
[315256092,1708968638515,-500.7936119,0.00019178,2]
[315256094,1708968638524,-500.0,0.00019178,2]
[315256096,1708968638534,-500.35866528,0.00019178,2]
[315256098,1708968638543,-502.47764759,0.00019178,2]
[315256100,1708968638552,-500.0,0.00019178,2]
[315256102,1708968638562,-503.11301008,0.00019178,2]
[315256104,1708968638571,-500.0,0.00019178,2]
[315256106,1708968638581,-311.85052786,0.00019178,2]
[315256108,1708968638590,-500.0,0.00019178,2]
[315256110,1708968638599,-500.0,0.00019178,2]
[315256112,1708968638609,-500.0,0.00019178,2]
[315256114,1708968638619,-500.0,0.00019178,2]
[315256116,1708968638628,-510.36105547,0.00019178,2]
[315256118,1708968638637,-500.0,0.00019178,2]
[315256120,1708968638646,-500.0,0.00019178,2]
[315256122,1708968638655,-500.0,0.00019178,2]
[315256124,1708968638664,-834.63,0.00019178,2]
[315256126,1708968638673,-500.0,0.00019178,2]
[315256128,1708968638683,-500.0,0.00019178,2]
[315256130,1708968638692,-411.91624469,0.00019178,2]
[315256132,1708968638701,-500.0,0.00019178,2]
[315256134,1708968638711,-500.0,0.00019178,2]
[315256136,1708968638720,-500.0,0.00019178,2]
[315256137,1708968638729,-500.0,0.00019178,2]
[315256139,1708968638739,-593.05407186,0.00019178,2]
[315256141,1708968638747,-501.64126338,0.00019178,2]
[315256143,1708968638757,-500.0,0.00019178,2]
[315256144,1708968638766,-644.58,0.00019178,2]
[315256146,1708968638775,-500.0,0.00019178,2]
[315256148,1708968638785,-500.0,0.00019178,2]
[315256150,1708968638794,-500.0,0.00019178,2]
[315256151,1708968638804,-500.0,0.00019178,2]
[315256152,1708968638813,-500.0,0.00019178,2]
[315256154,1708968638822,-500.0,0.00019178,2]
[315256155,1708968638831,-500.0,0.00019178,2]
[315256157,1708968638840,-500.0,0.00019178,2]
[315256159,1708968638850,-500.0,0.00019178,2]
[315256160,1708968638859,-500.0,0.00019178,2]
[315256162,1708968638868,-500.0,0.00019178,2]
[315256164,1708968638879,-261.028789,0.00019178,2]
[315256165,1708968638887,-500.0,0.00019178,2]
[315256166,1708968638896,-500.0,0.00019178,2]
[315256167,1708968638905,-500.0,0.00019178,2]
[315256168,1708968638915,-500.0,0.00019178,2]
[315256169,1708968638926,-500.0,0.00019178,2]
[315256170,1708968638935,-500.0,0.00019178,2]
[315256171,1708968638944,-500.0,0.00019178,2]
[315256172,1708968638953,-500.0,0.00019178,2]
[315256173,1708968638963,-500.0,0.00019178,2]
[315256174,1708968638973,-500.0,0.00019178,2]
[315256175,1708968638982,-500.0,0.00019178,2]
[315256176,1708968638992,-500.0,0.00019178,2]
[315256177,1708968639002,-500.0,0.00019178,2]
[315256178,1708968639015,-209.13982258,0.00019178,2]
[315256179,1708968639025,-500.85128667,0.00019178,2]
[315256180,1708968639035,-623.93,0.00019178,2]
[315256181,1708968639045,-500.0,0.00019178,2]
[315256182,1708968639055,-500.0,0.00019178,2]
[315256183,1708968639066,-500.0,0.00019178,2]
[315256184,1708968639075,-500.0,0.00019178,2]
[315256185,1708968639085,-500.0,0.00019178,2]
[315256186,1708968639096,-500.0,0.00019178,2]
[315256187,1708968639106,-863.65,0.00019178,2]
[315256188,1708968639115,-500.0,0.00019178,2]
[315256189,1708968639125,-457.65145341,0.00019178,2]
[315256190,1708968639134,-432.44409481,0.00019178,2]
[315256191,1708968639144,-500.0,0.00019178,2]
[315256192,1708968639153,-230.32522058,0.00019178,2]
[315256193,1708968639162,-500.0,0.00019178,2]
[315256194,1708968639172,-500.0,0.00019178,2]
[315256195,1708968639181,-5031.57,0.00019178,2]
[315256196,1708968639190,-579.17,0.00019178,2]
[315256197,1708968639199,-500.0,0.00019178,2]
[315256198,1708968639209,-1298.13,0.00019178,2]
[315256199,1708968639219,-501.7897385,0.00019178,2]
[315256200,1708968639229,-1552.5,0.00019178,2]
[315256201,1708968639239,-1089.57,0.00019178,2]
[315256202,1708968639248,-500.0,0.00019178,2]
[315256203,1708968639258,-1768.47,0.00019178,2]
[315256204,1708968639267,-500.0,0.00019178,2]
[315256205,1708968639277,-500.0,0.00019178,2]
[315256206,1708968639287,-500.0,0.00019178,2]
[315256207,1708968639296,-431.63023226,0.00019178,2]
[315256208,1708968639305,-500.0,0.00019178,2]
[315256209,1708968639314,-154.93802479,0.00019178,2]
[315256210,1708968639325,-1027.29,0.00019178,2]
[315256211,1708968639334,-500.0,0.00019178,2]
[315256212,1708968639343,-502.27989563,0.00019178,2]
[315256213,1708968639352,-581.87051322,0.00019178,2]
[315256214,1708968639362,-10000.15,0.00019178,2]
[315256215,1708968639371,-500.0,0.00019178,2]
[315256216,1708968639380,-318.97915559,0.00019178,2]
[315256217,1708968639390,-500.0,0.00019178,2]
[315256218,1708968639401,-500.0,0.00019178,2]
[315256219,1708968639411,-501.78484159,0.00019178,2]
[315256220,1708968639420,-1122.81,0.00019178,2]
[315256221,1708968639429,-500.0,0.00019178,2]
[315256222,1708968639438,-787.16,0.00019178,2]
[315256223,1708968639448,-500.0,0.00019178,2]
[315256224,1708968639457,-500.0,0.00019178,2]
[315256225,1708968639470,-500.0,0.00019178,2]
[315256226,1708968639480,-4193.46,0.00019178,2]
[315256227,1708968639491,-500.0,0.00019178,2]
[315256228,1708968639500,-600.35,0.00019178,2]
[315256229,1708968639511,-358.25874374,0.00019178,2]
[315256230,1708968639521,-500.0,0.00019178,2]
[315256231,1708968639531,-500.0,0.00019178,2]
[315256232,1708968639541,-500.0,0.00019178,2]
[315256233,1708968639552,-500.0,0.00019178,2]
[315256234,1708968639562,-500.0,0.00019178,2]
[315256235,1708968639573,-500.0,0.00019178,2]
[315256236,1708968639583,-500.0,0.00019178,2]
[315256237,1708968639596,-1087.87,0.00019178,2]
[315256238,1708968639607,-2290.77,0.00019178,2]
[315256239,1708968639617,-500.0,0.00019178,2]
[315256240,1708968639627,-500.0,0.00019178,2]
[315256241,1708968639637,-500.0,0.00019178,2]
[315256242,1708968639646,-1392.36,0.00019178,2]
[315256243,1708968639656,-500.0,0.00019178,2]
[315256244,1708968639666,-9522.21,0.00019178,2]
[315256245,1708968639675,-500.0,0.00019178,2]
[315256246,1708968639684,-514.9,0.00019178,2]
[315256247,1708968639694,-1572.78,0.00019178,2]
[315256248,1708968639704,-500.0,0.00019178,2]
[315256249,1708968639719,-405.80118565,0.00019178,2]
[315256250,1708968639729,-500.0,0.00019178,2]
[315256251,1708968639740,-500.0,0.00019178,2]
[315256252,1708968639749,-972.48,0.00019178,2]
[315256253,1708968639759,-500.0,0.00019178,2]
[315256254,1708968639769,-500.97209463,0.00019178,2]
[315256255,1708968639778,-652.68,0.00019178,2]
[315256256,1708968639788,-500.0,0.00019178,2]
[315256257,1708968639797,-501.82744386,0.00019178,2]
[315256258,1708968639806,-500.0,0.00019178,2]
[315256259,1708968639815,-165.964175,0.00019178,2]
[315256260,1708968639824,-166.059238,0.00019178,2]
[315256261,1708968639834,-166.666666,0.00019178,2]
[315256262,1708968639842,-165.814786,0.00019178,2]
[315256263,1708968639852,-391.92766452,0.00019352,2]
[315256264,1708968639861,-500.0,0.00019451,2]
[315256265,1708968639870,-500.0,0.00019451,2]
[315256266,1708968639880,-500.0,0.00019452,2]
[315256267,1708968639889,-500.0,0.00019452,2]
[315256268,1708968639899,-588.44,0.00019452,2]
[315256269,1708968640010,-500.0,0.00019452,2]
[315256270,1708968640019,-500.0,0.00019452,2]
[315256271,1708968640028,-500.0,0.00019452,2]
[315256273,1708968640038,-500.0,0.00019452,2]
[315256274,1708968640047,-500.0,0.00019452,2]
[315256275,1708968640056,-500.0,0.00019452,2]
[315256276,1708968640065,-500.0,0.00019452,2]
[315256277,1708968640074,-500.0,0.00019452,2]
[315256278,1708968640082,-170.41229033,0.00019452,2]
[315256279,1708968640091,-725.94,0.00019452,2]
[315256281,1708968640100,-500.0,0.00019452,2]
[315256282,1708968640110,-500.0,0.00019452,2]
[315256283,1708968640119,-528.46,0.00019452,2]
[315256284,1708968640127,-623.1,0.00019452,2]
[315256285,1708968640136,-500.0,0.00019452,2]
[315256286,1708968640146,-500.0,0.00019452,2]
[315256287,1708968640154,-500.0,0.00019452,2]
[315256288,1708968640164,-536.17501023,0.00019452,2]
[315256289,1708968640173,-500.0,0.00019452,2]
[315256290,1708968640182,-834.63,0.00019452,2]
[315256292,1708968640191,-500.0,0.00019452,2]
[315256294,1708968640200,-500.0,0.00019452,2]
[315256295,1708968640211,-156.21266389,0.00019452,2]
[315256296,1708968640220,-500.0,0.00019452,2]
[315256297,1708968640229,-500.0,0.00019452,2]
[315256298,1708968640243,-644.58,0.00019452,2]
[315256299,1708968640253,-500.0,0.00019452,2]
[315256300,1708968640262,-500.0,0.00019452,2]
[315256301,1708968640271,-298.70806404,0.00019452,2]
[315256303,1708968640280,-284.91608667,0.00019452,2]
[315256305,1708968640289,-500.0,0.00019452,2]
[315256306,1708968640298,-500.0,0.00019452,2]
[315256307,1708968640307,-500.0,0.00019452,2]
[315256308,1708968640316,-500.0,0.00019452,2]
[315256309,1708968640325,-500.0,0.00019452,2]
[315256310,1708968640334,-623.93,0.00019452,2]
[315256312,1708968640343,-500.0,0.00019452,2]
[315256314,1708968640352,-500.0,0.00019452,2]
[315256315,1708968640361,-500.0,0.00019452,2]
[315256316,1708968640370,-863.65,0.00019452,2]
[315256317,1708968640379,-5031.57,0.00019452,2]
[315256318,1708968640388,-500.0,0.00019452,2]
[315256319,1708968640397,-1298.13,0.00019452,2]
[315256320,1708968640406,-1552.5,0.00019452,2]
[315256321,1708968640415,-1089.57,0.00019452,2]
[315256322,1708968640424,-449.10144349,0.00019452,2]
[315256323,1708968640433,-1768.47,0.00019452,2]
[315256324,1708968640445,-500.0,0.00019452,2]
[315256325,1708968640454,-500.0,0.00019452,2]
[315256326,1708968640465,-1027.29,0.00019452,2]
[315256327,1708968640474,-10000.15,0.00019452,2]
[315256328,1708968640482,-500.0,0.00019452,2]
[315256329,1708968640492,-500.0,0.00019452,2]
[315256330,1708968640503,-1122.81,0.00019452,2]
[315256331,1708968640512,-787.16,0.00019452,2]
[315256332,1708968640521,-500.0,0.00019452,2]
[315256333,1708968640530,-500.0,0.00019452,2]
[315256334,1708968640539,-4193.46,0.00019452,2]
[315256335,1708968640549,-500.0,0.00019452,2]
[315256336,1708968640558,-600.35,0.00019452,2]
[315256337,1708968640568,-500.0,0.00019452,2]
[315256338,1708968640578,-500.0,0.00019452,2]
[315256339,1708968640587,-500.0,0.00019452,2]
[315256340,1708968640597,-1087.87,0.00019452,2]
[315256341,1708968640606,-2290.77,0.00019452,2]
[315256342,1708968640615,-500.0,0.00019452,2]
[315256343,1708968640625,-1392.36,0.00019452,2]
[315256344,1708968640635,-500.0,0.00019452,2]
[315256345,1708968640646,-9522.21,0.00019452,2]
[315256346,1708968640657,-500.0,0.00019452,2]
[315256347,1708968640666,-514.9,0.00019452,2]
[315256348,1708968640676,-1572.78,0.00019452,2]
[315256349,1708968640686,-972.48,0.00019452,2]
[315256350,1708968640695,-171.64068098,0.00019452,2]
[315256351,1708968640707,-652.68,0.00019452,2]
[315256352,1708968640718,-500.0,0.00019452,2]
[315256353,1708968640727,-500.0,0.00019452,2]
[315256354,1708968640737,-391.92766448,0.00019557,2]
[315256355,1708968640748,-166.666666,0.00019627,2]
[315256356,1708968640757,-500.0,0.00019725,2]
[315256357,1708968640766,-500.0,0.00019726,2]
[315256358,1708968640775,-588.44,0.00019726,2]
[315256359,1708968640784,-500.0,0.00019726,2]
[315256360,1708968640794,-500.0,0.00019726,2]
[315256361,1708968640803,-500.0,0.00019726,2]
[315256362,1708968640812,-356.05453121,0.00019726,2]
[315256363,1708968640821,-500.0,0.00019726,2]
[315256364,1708968640830,-500.0,0.00019726,2]
[315256365,1708968640839,-452.30101348,0.00019726,2]
[315256366,1708968640849,-725.94,0.00019726,2]
[315256367,1708968640859,-623.1,0.00019726,2]
[315256368,1708968640869,-500.0,0.00019726,2]
[315256369,1708968640879,-500.0,0.00019726,2]
[315256370,1708968640888,-834.63,0.00019726,2]
[315256371,1708968640898,-644.58,0.00019726,2]
[315256372,1708968640908,-500.0,0.00019726,2]
[315256373,1708968640920,-500.0,0.00019726,2]
[315256374,1708968640929,-479.17651164,0.00019726,2]
[315256375,1708968640939,-500.0,0.00019726,2]
[315256376,1708968640949,-500.0,0.00019726,2]
[315256377,1708968640961,-500.0,0.00019726,2]
[315256378,1708968640972,-500.0,0.00019726,2]
[315256379,1708968640981,-623.93,0.00019726,2]
[315256380,1708968640991,-500.0,0.00019726,2]
[315256381,1708968641002,-500.0,0.00019726,2]
[315256382,1708968641012,-863.65,0.00019726,2]
[315256383,1708968641022,-5031.57,0.00019726,2]
[315256385,1708968641031,-1298.13,0.00019726,2]
[315256386,1708968641040,-1552.5,0.00019726,2]
[315256387,1708968641050,-1089.57,0.00019726,2]
[315256388,1708968641059,-1768.47,0.00019726,2]
[315256389,1708968641069,-500.0,0.00019726,2]
[315256390,1708968641078,-1027.29,0.00019726,2]
[315256391,1708968641087,-10000.15,0.00019726,2]
[315256392,1708968641096,-609.4828341,0.00019726,2]
[315256393,1708968641106,-350.16228113,0.00019726,2]
[315256394,1708968641117,-1122.81,0.00019726,2]
[315256395,1708968641128,-787.16,0.00019726,2]
[315256396,1708968641137,-500.0,0.00019726,2]
[315256397,1708968641146,-500.0,0.00019726,2]
[315256398,1708968641156,-4193.46,0.00019726,2]
[315256399,1708968641166,-500.0,0.00019726,2]
[315256400,1708968641175,-600.35,0.00019726,2]
[315256402,1708968641184,-500.0,0.00019726,2]
[315256403,1708968641193,-500.0,0.00019726,2]
[315256404,1708968641201,-1087.87,0.00019726,2]
[315256405,1708968641211,-2290.77,0.00019726,2]
[315256406,1708968641222,-1392.36,0.00019726,2]
[315256407,1708968641231,-9522.21,0.00019726,2]
[315256408,1708968641242,-514.9,0.00019726,2]
[315256409,1708968641252,-1572.78,0.00019726,2]
[315256410,1708968641262,-972.48,0.00019726,2]
[315256411,1708968641272,-652.68,0.00019726,2]
[315256412,1708968641281,-391.92766448,0.00019763,2]
[315256413,1708968641291,-8230.24916882,0.0001989,2]
[315256414,1708968641302,-391.92766448,0.00019968,2]
[315256415,1708968641313,-500.0,0.00019998,2]
[315256416,1708968641324,-500.0,0.00019998,2]
[315256417,1708968641333,-431.18189719,0.00019998,2]
[315256418,1708968641343,-104303.12329218,0.00019999,2]
[315256419,1708968641352,-500.0,0.0002,2]
[315256420,1708968641363,-588.44,0.0002,2]
[315256421,1708968641373,-200.0,0.0002,2]
[315256422,1708968641382,-500.0,0.0002,2]
[315256423,1708968641392,-500.0,0.0002,2]
[315256424,1708968641400,-725.94,0.0002,2]
[315256425,1708968641410,-623.1,0.0002,2]
[315256426,1708968641419,-500.0,0.0002,2]
[315256427,1708968641428,-500.0,0.0002,2]
[315256428,1708968641438,-834.63,0.0002,2]
[315256429,1708968641447,-644.58,0.0002,2]
[315256430,1708968641456,-500.0,0.0002,2]
[315256431,1708968641468,-500.0,0.0002,2]
[315256432,1708968641477,-500.0,0.0002,2]
[315256433,1708968641486,-500.0,0.0002,2]
[315256434,1708968641495,-623.93,0.0002,2]
[315256435,1708968641505,-500.0,0.0002,2]
[315256436,1708968641515,-500.0,0.0002,2]
[315256437,1708968641526,-863.65,0.0002,2]
[315256438,1708968641536,-5031.57,0.0002,2]
[315256439,1708968641546,-1298.13,0.0002,2]
[315256440,1708968641556,-1552.5,0.0002,2]
[315256441,1708968641566,-1089.57,0.0002,2]
[315256442,1708968641577,-1768.47,0.0002,2]
[315256443,1708968641587,-500.0,0.0002,2]
[315256444,1708968641598,-1027.29,0.0002,2]
[315256445,1708968641608,-10000.15,0.0002,2]
[315256446,1708968641619,-1122.81,0.0002,2]
[315256447,1708968641629,-787.16,0.0002,2]
[315256448,1708968641639,-500.0,0.0002,2]
[315256449,1708968641650,-4193.46,0.0002,2]
[315256450,1708968641660,-500.0,0.0002,2]
[315256451,1708968641669,-600.35,0.0002,2]
[315256452,1708968641678,-500.0,0.0002,2]